bitfinex-derivatives/quotes_ETHF0:USTF0_20251203
["timestamp","ask_amount","ask_price","bid_price","bid_amount"]
[1764723239105,3.9501,3005.4,3005.3,0.7393]
[1764723239315,0.8122,3005.1,3005.0,2.0091]
[1764723239602,3.2078,3005.4,3004.9,0.00839038]
[1764723239603,2.0196,3005.0,3004.9,0.74769038]
[1764723239797,2.0196,3005.0,3004.9,1.54259038]
[1764723240306,1.5545,3005.0,3004.9,1.54259038]
[1764723240906,2.0196,3005.0,3004.9,0.00839038]
[1764723241299,2.0196,3005.0,3004.9,0.74769038]
[1764723242001,2.0196,3005.0,3004.9,0.00839038]
[1764723243203,2.0196,3005.0,3004.9,0.74769038]
[1764723243404,2.0196,3005.0,3004.9,1.52999038]
[1764723243604,2.0196,3005.0,3004.9,0.74769038]
[1764723244401,2.0196,3005.0,3004.9,0.00839038]
[1764723245513,2.0196,3005.0,3004.9,1.53509038]
[1764723245910,2.0196,3005.0,3004.9,0.75279038]
[1764723247006,2.0095,3005.0,3004.9,1.53509038]
[1764723247812,2.0095,3005.0,3004.9,0.00839038]
[1764723248508,1.5237,3004.3,3004.2,3.29836616]
[1764723248812,1.5237,3004.2,3004.1,1.77166616]
[1764723249012,1.5237,3003.9,3003.8,1.5267]
[1764723249405,1.52712464,3003.9,3003.8,1.53082329]
[1764723249604,1.52712464,3003.9,3003.8,0.00412329]
[1764723250814,1.52712464,3003.9,3003.8,0.74852329]
[1764723251209,1.52712464,3003.9,3003.8,0.00412329]
[1764723251407,1.5237,3003.6,3003.5,0.74938786]
[1764723251609,1.5237,3003.6,3003.0,0.4747]
[1764723251811,1.5237,3003.6,3003.5,0.7444]
[1764723252316,1.5237,3003.6,3003.5,0.74796772]
[1764723253617,1.5237,3003.6,3003.5,0.00356772]
[1764723253813,1.5237,3003.3,3003.2,0.00332525]
[1764723254111,1.5237,3002.7,3002.4,0.16648]
[1764723254308,1.5237,3002.7,3002.6,4.7345]
[1764723254612,1.9888,3003.0,3002.9,0.7444]
[1764723254817,1.9888,3003.0,3002.9,0.74724183]
[1764723255317,1.9888,3003.0,3002.9,0.00284183]
[1764723255616,2.0095,3002.5,3002.4,0.16648]
[1764723255913,5.2173,3002.5,3002.0,0.6412]
[1764723256219,4.7315,3002.5,3002.4,1.5267]
[1764723256414,3.9952,3002.5,3002.4,1.5267]
[1764723256718,4.7315,3002.5,3002.4,1.53102613]
[1764723257115,3.9952,3002.5,3002.4,1.53102613]
[1764723257413,3.2078,3002.5,3002.4,1.53102613]
[1764723257609,3.2078,3002.5,3002.4,1.69750613]
[1764723257812,0.00499625,3002.6,3002.5,2.16788]
[1764723259815,0.00499625,3002.6,3002.5,8.16788]
[1764723260520,0.79239625,3002.6,3002.5,2.16788]
[1764723260724,0.00499625,3002.6,3002.5,2.16788]
[1764723261021,1.52869625,3002.6,3002.5,1.69318]
[1764723261217,0.00499625,3002.6,3002.5,2.16788]
[1764723263124,0.00499625,3002.6,3002.5,8.16788]
[1764723263320,3.2078,3003.2,3003.0,0.16644]
[1764723263618,3.2078,3003.2,3003.1,1.69314]
[1764723264215,4.7315,3003.2,3003.1,1.69314]
[1764723264420,4.7315,3003.2,3003.1,0.91084]
[1764723264619,4.7315,3003.2,3003.1,1.69314]
[1764723264820,3.9952,3003.2,3003.1,1.69314]
[1764723265026,3.2078,3003.2,3003.1,1.69314]
[1764723265422,3.9952,3003.2,3003.1,1.69314]
[1764723266028,3.2078,3003.2,3003.1,1.69314]
[1764723266520,1.52869625,3003.5,3003.4,1.5267]
[1764723267125,0.79239625,3003.5,3003.4,1.5267]
[1764723267422,1.52869625,3003.5,3003.4,1.5267]
[1764723271425,1.98959625,3003.5,3003.4,0.7444]
[1764723271725,1.98959625,3003.5,3003.4,1.5267]
[1764723271923,1.5237,3002.9,3002.8,1.69815625]
[1764723272521,0.7874,3002.9,3002.8,1.69815625]
[1764723272924,1.5237,3002.9,3002.8,0.91585625]
[1764723273424,1.5237,3002.9,3002.8,1.69245625]
[1764723273926,1.5237,3002.9,3002.8,0.17145625]
[1764723274127,1.5237,3002.9,3002.8,0.00499625]
[1764723274930,4.0113,3003.1,3003.0,2.0697]
[1764723275430,3.2078,3003.1,3003.0,2.0697]
[1764723275630,4.0113,3003.1,3003.0,2.0697]
[1764723275827,4.8152,3003.1,3003.0,2.0697]
[1764723276423,4.8152,3003.1,3003.0,1.5888]
[1764723277122,4.0113,3003.1,3003.0,2.0697]
[1764723277319,5.28109625,3003.5,3003.4,1.5888]
[1764723277521,4.01629625,3003.5,3003.4,1.5888]
[1764723277722,4.01629625,3003.5,3003.4,1.75523]
[1764723280333,5.29179625,3003.5,3003.4,0.97863]
[1764723280523,0.7961,3003.2,3003.1,3.30406616]
[1764723280721,5.24439625,3003.5,3003.4,0.7993]
[1764723281833,5.24439625,3003.5,3003.1,1.77166616]
[1764723281834,0.7961,3003.2,3003.1,3.30406616]
[1764723282336,4.77279625,3003.5,3003.4,1.5324]
[1764723282734,5.24239625,3003.5,3003.4,1.5324]
[1764723284733,4.77279625,3003.5,3003.4,1.5324]
[1764723285029,3.21279625,3003.5,3003.4,1.69883]
[1764723285234,1.56499625,3003.5,3003.4,3.48759265]
[1764723285635,2.03459625,3003.5,3003.4,2.75449265]
[1764723285938,2.03459625,3003.5,3003.4,3.48759265]
[1764723286840,1.56499625,3003.5,3003.4,3.48759265]
[1764723287133,2.03459625,3003.5,3003.4,0.96573]
[1764723287336,4.77279625,3003.5,3003.4,1.69883]
[1764723287637,3.21279625,3003.5,3003.4,1.69883]
[1764723288235,4.00889625,3003.5,3003.4,1.69883]
[1764723288838,4.77279625,3003.5,3003.4,1.69883]
[1764723289031,5.24239625,3003.5,3003.4,0.16643]
[1764723289232,5.24239625,3003.5,3003.4,1.95725284]
[1764723289638,4.77279625,3003.5,3003.4,3.48965284]
[1764723290340,5.24239625,3003.5,3003.4,2.75655284]
[1764723290540,4.00889625,3003.5,3003.4,1.69883]
[1764723290842,4.77279625,3003.5,3003.4,1.69883]
[1764723291940,5.24239625,3003.5,3003.4,0.96573]
[1764723292144,5.24239625,3003.5,3003.4,1.69883]
[1764723292438,4.77279625,3003.5,3003.4,1.69883]
[1764723293741,5.24239625,3003.5,3003.4,0.16643]
[1764723293943,1.56,3003.4,3003.3,1.79252024]
[1764723295231,1.56,3003.3,3003.2,1.79252024]
[1764723296042,1.56,3003.3,3003.2,2.59182024]
[1764723296234,1.56,3003.3,3003.2,1.79252024]
[1764723296842,1.56,3003.3,3003.2,3.32492024]
[1764723297640,1.56,3003.3,3003.2,1.79252024]
[1764723298142,4.77279625,3003.5,3003.4,1.5324]
[1764723298842,5.24239625,3003.5,3003.4,0.7993]
[1764723299142,5.24239625,3003.5,3003.4,1.5324]
[1764723300945,5.24239625,3003.5,3003.4,0.7993]
[1764723301137,3.21279625,3003.5,3003.4,3.32492024]
[1764723301543,3.21279625,3003.5,3003.4,3.49135024]
[1764723301938,4.00889625,3003.5,3003.4,3.49135024]
[1764723302246,5.24239625,3003.5,3003.4,2.75825024]
[1764723302948,5.24239625,3003.5,3003.4,1.95895024]
[1764723303142,5.24239625,3003.5,3003.3,1.79252024]
[1764723303348,1.5551,3003.4,3003.3,1.79252024]
[1764723303849,1.5551,3003.4,3003.3,2.58682024]
[1764723304049,1.5551,3003.4,3003.3,3.35482024]
[1764723305544,1.5551,3003.4,3003.3,1.79252024]
[1764723306551,1.5551,3003.4,3003.3,3.35482024]
[1764723307552,0.7692,3003.4,3003.3,1.5623]
[1764723308148,0.7692,3003.4,3003.3,3.35724458]
[1764723308349,1.5551,3003.4,3003.3,3.35724458]
[1764723308953,1.5551,3003.2,3003.1,1.72874]
[1764723309548,1.5551,3003.2,3003.1,0.16644]
[1764723310154,1.9982,3003.0,3002.9,3.1608288]
[1764723310450,1.47802451,3003.4,3003.0,2.0439]
[1764723310451,3.977,3003.1,3003.0,2.0439]
[1764723310753,3.2078,3003.1,3003.0,3.68837451]
[1764723310955,3.2078,3003.1,3003.0,6.05490331]
[1764723311145,3.977,3003.1,3003.0,4.5768788]
[1764723311347,3.2078,3003.1,3003.0,4.5768788]
[1764723314060,1.56009625,3003.5,3003.4,0.7943]
[1764723314259,1.56009625,3003.5,3003.4,3.35719178]
[1764723314260,4.76789625,3003.5,3003.4,3.35719178]
[1764723314760,5.21099625,3003.5,3003.4,2.58919178]
[1764723315059,5.21099625,3003.5,3003.4,3.35719178]
[1764723315358,4.76789625,3003.5,3003.4,3.52362178]
[1764723317553,5.21099625,3003.5,3003.4,3.35719178]
[1764723317757,1.5551,3003.4,3003.3,1.79489178]
[1764723317958,3.03312451,3003.4,3003.3,1.79489178]
[1764723318456,1.5551,3003.1,3003.0,4.0952788]
[1764723318656,4.7629,3003.1,3003.0,1.72875]
[1764723319256,4.7629,3003.1,3003.0,0.16645]
[1764723319962,4.7629,3003.1,3003.0,1.72875]
[1764723321157,3.977,3003.1,3003.0,2.21035]
[1764723321565,4.7629,3003.1,3003.0,2.21035]
[1764723322172,4.7629,3003.1,3003.0,1.72875]
[1764723322657,4.7629,3003.1,3003.0,0.16645]
[1764723323766,1.5551,3002.8,3002.6,2.23921191]
[1764723323958,1.9982,3002.5,3002.4,0.79862613]
[1764723324265,3.2078,3002.7,3002.4,1.56662613]
[1764723324562,4.7629,3002.7,3002.6,3.35719527]
[1764723324761,4.7629,3002.7,3002.6,1.5623]
[1764723328762,4.7629,3002.7,3002.4,1.9657014]
[1764723328967,1.5551,3002.3,3002.2,1.64367074]
[1764723329168,4.7629,3002.1,3002.0,1.5623]
[1764723329664,3.2078,3002.1,3002.0,2.0439]
[1764723329864,5.206,3002.5,3002.4,0.7943]
[1764723330069,5.206,3002.5,3002.4,0.796725]
[1764723330756,4.7629,3002.5,3002.4,1.564725]
[1764723331565,5.206,3002.5,3002.4,0.796725]
[1764723334977,5.206,3002.5,3002.4,1.564725]
[1764723336478,5.206,3002.5,3002.4,0.796725]
[1764723336976,5.206,3002.5,3002.4,0.002425]
[1764723337173,5.206,3002.5,3002.4,1.494625]
[1764723337577,5.206,3002.5,3002.4,0.749225]
[1764723337877,5.206,3002.5,3002.4,0.002425]
[1764723338672,4.7629,3002.5,3002.4,1.494625]
[1764723339880,5.2079,3002.5,3002.4,0.749225]
[1764723340687,4.7629,3002.5,3002.4,1.494625]
[1764723342692,5.2079,3002.5,3002.4,0.749225]
[1764723343390,2.0001,3002.5,3002.4,0.749225]
[1764723343589,5.2079,3002.5,3002.4,0.749225]
[1764723345591,5.2079,3002.5,3002.4,0.002425]
[1764723350898,1.573,3002.0,3001.9,1.65871]
[1764723351800,1.573,3002.0,3001.9,1.66193452]
[1764723354099,2.018,3002.0,3001.9,0.16973452]
[1764723355693,2.018,3002.0,3001.9,0.91653452]
[1764723355892,2.018,3002.0,3001.9,1.66193452]
[1764723356897,2.018,3002.0,3001.9,0.16973452]
[1764723357796,2.018,3002.0,3001.9,0.00322452]
[1764723362599,2.018,3001.5,3001.4,2.38763946]
[1764723362794,3.9759,3001.5,3001.4,1.4922]
[1764723363105,4.7245,3001.5,3001.4,1.4922]
[1764723363289,4.7245,3001.5,3001.4,1.65874]
[1764723363697,4.72850485,3001.5,3001.4,1.66240435]
[1764723364295,3.97990485,3001.5,3001.4,1.66240435]
[1764723364692,3.21180485,3001.5,3001.4,1.66240435]
[1764723364897,3.21180485,3001.5,3001.4,5.49219755]
[1764723368589,3.98380485,3001.5,3001.4,4.05004381]
[1764723368799,3.21180485,3001.5,3001.4,4.05004381]
[1764723369002,0.00400485,3001.5,3001.4,9.10455809]
[1764723369188,3.2078,3001.9,3001.8,1.75092]
[1764723369387,3.2078,3001.9,3001.8,5.5855137]
[1764723370304,3.21140447,3001.9,3001.8,5.5855137]
[1764723372307,3.98340447,3001.9,3001.8,5.5855137]
[1764723372604,4.73200447,3001.9,3001.8,3.36255996]
[1764723372798,4.73200447,3001.9,3001.8,2.55895996]
[1764723373308,4.73200447,3001.9,3001.8,4.14335996]
[1764723373804,3.21140447,3001.9,3001.8,4.14335996]
[1764723374408,3.98340447,3001.9,3001.8,4.14335996]
[1764723375209,4.73200447,3001.9,3001.8,4.14335996]
[1764723375810,3.98340447,3001.9,3001.8,4.14335996]
[1764723376016,3.21140447,3001.9,3001.8,4.14335996]
[1764723377112,3.21140447,3001.9,3001.8,5.5855137]
[1764723377419,0.77699625,3002.2,3002.1,1.7509]
[1764723378407,0.78108626,3002.2,3002.1,1.7509]
[1764723378607,1.52968626,3002.2,3002.1,0.9701]
[1764723378809,1.52968626,3002.2,3002.1,1.7509]
[1764723379814,0.78108626,3002.2,3002.1,1.7509]
[1764723380415,1.52968626,3002.2,3002.1,1.7509]
[1764723382016,1.52968626,3002.2,3002.1,0.9701]
[1764723382219,1.52968626,3002.2,3002.1,0.1665]
[1764723382519,1.52968626,3002.2,3002.1,0.9701]
[1764723382813,1.52968626,3002.2,3002.1,1.7509]
[1764723384015,0.78108626,3002.2,3002.1,1.7509]
[1764723384314,1.52968626,3002.2,3002.1,1.7509]
[1764723386309,1.5206,3001.9,3001.8,2.39243996]
[1764723386505,1.5206,3001.6,3001.5,2.56396621]
[1764723386713,1.5206,3001.6,3001.5,0.17152625]
[1764723387120,1.5206,3001.6,3001.5,0.97512625]
[1764723387713,1.5206,3001.6,3001.5,0.17152625]
[1764723389721,1.5206,3000.7,3000.6,3.2078]
[1764723389921,1.5206,3000.7,3000.6,4.0114]
[1764723390123,1.5206,3000.7,3000.6,4.7922]
[1764723390818,1.5206,3000.7,3000.6,4.79546415]
[1764723391324,1.5206,3000.7,3000.6,3.21106415]
[1764723391622,1.5206,3000.7,3000.6,4.01466415]
[1764723392326,1.5206,3000.7,3000.6,3.21106415]
[1764723392622,1.5206,3000.7,3000.6,4.01466415]
[1764723393221,1.5206,3000.7,3000.6,3.21106415]
[1764723394023,1.5206,3000.7,3000.6,0.00326415]
[1764723394214,1.5206,3000.7,3000.6,1.60856415]
[1764723394417,1.5206,3000.7,3000.6,0.79816415]
[1764723395418,1.5206,3000.7,3000.6,1.60856415]
[1764723395625,1.5206,3000.7,3000.6,0.00326415]
[1764723395820,1.5206,3000.7,3000.6,0.74136415]
[1764723396021,1.5206,3000.7,3000.6,0.00326415]
[1764723397529,1.5206,3000.7,3000.6,0.74136415]
[1764723398026,1.5206,3000.7,3000.6,0.00326415]
[1764723398525,1.5206,3000.7,3000.6,0.74136415]
[1764723398726,1.5206,3000.7,3000.6,0.00326415]
[1764723403026,1.5206,3000.7,3000.6,0.74136415]
[1764723403528,1.5206,3000.7,3000.6,0.00326415]
[1764723405527,1.963,3000.5,3000.4,0.16659]
[1764723405728,1.5063,3000.3,3000.2,3.2078]
[1764723406732,1.5063,3000.3,3000.2,3.21136113]
[1764723407031,1.5063,3000.3,3000.2,3.94946113]
[1764723407233,1.5063,3000.3,3000.2,3.21136113]
[1764723407433,1.5063,3000.3,3000.2,0.00356113]
[1764723408221,1.5063,2999.8,2999.7,0.16663]
[1764723409332,1.51027689,2999.8,2999.7,0.16961066]
[1764723410430,1.51027689,2999.8,2999.7,0.90771066]
[1764723411133,1.51027689,2999.8,2999.7,0.16961066]
[1764723411333,2.95243063,2999.8,2999.7,0.00298066]
[1764723412238,1.51027689,2999.8,2999.7,0.00298066]
[1764723413248,0.74137689,2999.8,2999.7,1.70931066]
[1764723413445,0.00397689,2999.8,2999.7,1.70931066]
[1764723416145,1.51027689,2999.8,2999.7,1.70931066]
[1764723416445,0.00397689,2999.8,2999.7,1.70931066]
[1764723417346,0.00397689,2999.8,2999.7,3.19062595]
[1764723417839,0.00397689,2999.8,2999.7,1.70931066]
[1764723418041,0.74137689,2999.8,2999.7,1.70931066]
[1764723418241,1.51027689,2999.8,2999.7,1.70931066]
[1764723419348,0.74137689,2999.8,2999.7,1.70931066]
[1764723419954,1.51027689,2999.8,2999.7,1.70931066]
[1764723420359,1.51027689,2999.8,2999.7,0.90771066]
[1764723420557,1.51027689,2999.8,2999.7,0.16961066]
[1764723421457,1.51027689,2999.8,2999.7,0.90771066]
[1764723421857,1.51027689,2999.8,2999.7,1.70931066]
[1764723422047,0.74137689,2999.8,2999.7,1.70931066]
[1764723423365,1.51027689,2999.8,2999.7,0.00298066]
[1764723423555,4.71807689,2999.8,2999.0,3.6643]
[1764723424366,1.5427,2999.5,2999.4,0.96455]
[1764723424569,1.5427,2999.5,2999.4,1.75662851]
[1764723425461,0.8028,2999.5,2999.4,1.75662851]
[1764723425669,1.54667689,2999.8,2999.7,1.587]
[1764723426069,1.54667689,2999.8,2999.7,0.7979]
[1764723426471,1.54667689,2999.8,2999.7,1.75363]
[1764723427269,0.80677689,2999.8,2999.7,1.75363]
[1764723427575,1.5427,2999.5,2999.4,1.58997851]
[1764723427767,1.5427,2999.5,2999.4,1.75662851]
[1764723430873,0.8028,2999.5,2999.4,1.75662851]
[1764723431376,0.00397689,2999.8,2999.7,1.587]
[1764723431571,0.00397689,2999.8,2999.7,1.75363]
[1764723431771,1.54667689,2999.8,2999.7,1.75363]
[1764723433979,0.80677689,2999.8,2999.7,1.75363]
[1764723434774,0.00397689,2999.8,2999.7,1.75363]
[1764723435374,0.80677689,2999.8,2999.7,1.75363]
[1764723435676,1.54667689,2999.8,2999.7,1.75363]
[1764723439177,0.00397689,2999.8,2999.7,1.75363]
[1764723440474,0.00397689,2999.8,2999.7,4.96143]
[1764723440976,4.7505,3000.4,3000.3,1.587]
[1764723441182,5.53120379,3000.4,3000.3,1.587]
[1764723441387,4.7505,3000.4,3000.3,1.587]
[1764723442184,4.75412997,3000.4,3000.3,0.7979]
[1764723443978,4.75412997,3000.4,3000.3,1.587]
[1764723444181,4.01422997,3000.4,3000.3,1.587]
[1764723444383,3.21142997,3000.4,3000.3,1.7536]
[1764723444784,0.00362997,3000.4,3000.3,1.7536]
[1764723446186,0.80642997,3000.4,3000.3,1.7536]
[1764723448690,0.8028,3000.1,3000.0,5.2772]
[1764723448891,1.54632997,3000.4,3000.3,1.587]
[1764723450189,1.54632997,3000.4,3000.3,0.7979]
[1764723450585,1.54632997,3000.4,3000.3,1.587]
[1764723451893,0.00362997,3000.4,3000.3,1.587]
[1764723452586,0.00362997,3000.4,3000.3,1.7536]
[1764723452792,0.00499625,3000.6,3000.5,2.23599]
[1764723453786,0.00762248,3000.6,3000.5,2.23599]
[1764723455395,0.00762248,3000.6,3000.5,15.42899]
[1764723455794,0.00762248,3000.6,3000.5,2.23599]
[1764723461806,2.0133,3001.5,3001.4,1.5921]
[1764723462002,1.5506,3001.1,3001.0,2.0512]
[1764723462207,1.5506,3001.1,3001.0,1.5921]
[1764723462808,1.55446165,3001.1,3001.0,1.5921]
[1764723463010,1.55446165,3001.1,3001.0,0.7824]
[1764723463213,0.77526165,3001.1,3001.0,2.0512]
[1764723464214,1.55446165,3001.1,3001.0,2.0512]
[1764723464420,1.55446165,3001.1,3001.0,1.5921]
[1764723464714,1.55446165,3001.1,3000.9,0.16656]
[1764723464916,1.5506,3000.8,3000.7,0.00499625]
[1764723465117,3.03191529,3000.8,3000.7,0.00499625]
[1764723465418,1.5506,3000.3,3000.2,3.2078]
[1764723466618,2.0037,3000.0,2999.9,0.16662]
[1764723467018,0.7714,3000.0,2999.9,1.75872]
[1764723467316,1.5506,3000.0,2999.9,1.75872]
[1764723469720,0.7714,3000.0,2999.9,1.75872]
[1764723470116,0.7714,3000.1,3000.0,2.21781]
[1764723470620,0.4531,3000.5,3000.0,2.21781]
[1764723470827,2.0037,3000.5,3000.4,0.7824]
[1764723471024,2.0037,3000.5,3000.4,1.5921]
[1764723471321,1.5506,3000.5,3000.4,1.5921]
[1764723472419,1.5506,3000.5,3000.4,1.75869]
[1764723473225,3.2078,3000.6,3000.5,2.21779]
[1764723474126,3.9792,3001.0,3000.7,0.16658]
[1764723474315,4.7584,3001.0,3000.9,1.5921]
[1764723478126,4.7584,3001.0,3000.8,0.16657]
[1764723478127,1.5506,3000.9,3000.8,0.16657]
[1764723479424,1.5506,3000.9,3000.8,0.94897]
[1764723480832,1.5506,3000.9,3000.8,1.75867]
[1764723482027,3.2078,3001.0,3000.8,1.75867]
[1764723482225,1.2245,3002.0,3000.9,4.65119081]
[1764723482527,2.0037,3002.0,3001.9,3.2078]
[1764723483230,2.00620063,3002.0,3001.9,3.21041648]
[1764723485229,1.22700063,3002.0,3001.9,3.37692648]
[1764723485435,0.45560063,3002.0,3001.9,3.37692648]
[1764723485635,0.45560063,3002.0,3001.9,4.82031729]
[1764723485834,0.45560063,3002.0,3001.9,5.08290539]
[1764723486533,1.1892,3003.0,3002.6,0.16647]
[1764723486738,1.5281,3002.7,3002.6,3.37427]
[1764723487434,1.53218659,3002.7,3002.6,3.37427]
[1764723488435,1.53218659,3002.7,3002.6,3.2078]
[1764723491342,0.74018659,3002.7,3002.6,3.37427]
[1764723491640,0.00408659,3002.7,3002.6,3.37427]
[1764723491836,0.74018659,3002.7,3002.6,3.37427]
[1764723492943,0.00408659,3002.7,3002.6,3.37427]
[1764723494236,1.2062,3003.5,3003.1,0.16644]
[1764723494449,1.5281,3003.3,3003.2,0.16643]
[1764723494637,1.5281,3003.3,3003.0,7.2138]
[1764723494840,0.4701,3003.5,3003.0,7.2138]
[1764723494841,1.5281,3003.1,3003.0,7.2138]
[1764723495040,1.5281,3003.1,3003.0,3.2078]
[1764723495238,1.53241902,3003.1,3003.0,3.2078]
[1764723495541,0.00431902,3003.1,3003.0,3.2078]
[1764723495742,0.74041902,3003.1,3003.0,3.2078]
[1764723496245,0.00431902,3003.1,3003.0,3.37425]
[1764723496545,0.74041902,3003.1,3003.0,3.37425]
[1764723496839,0.00431902,3003.1,3003.0,3.37425]
[1764723497337,0.74041902,3003.1,3003.0,3.37425]
[1764723498139,1.53241902,3003.1,3003.0,3.37425]
[1764723500038,1.53241902,3003.1,3003.0,3.2078]
[1764723502945,0.00499625,3003.4,3003.0,3.2078]
[1764723503258,0.4701,3004.0,3003.9,0.1664]
[1764723503452,0.4701,3004.0,3003.9,3.3742]
[1764723504047,0.4740483,3004.0,3003.9,3.3742]
[1764723505249,2.0021483,3004.0,3003.9,3.2078]
[1764723505446,1.5281,3003.7,3003.6,0.00499625]
[1764723510750,1.2101483,3004.0,3003.6,0.00499625]
[1764723510953,0.00499625,3004.3,3004.2,0.16638]
[1764723511450,1.53309625,3004.3,3004.2,0.16638]
[1764723511752,1.9982,3004.0,3003.9,3.2078]
[1764723512048,1.21019247,3004.0,3003.9,3.21135253]
[1764723512253,1.21019247,3004.0,3003.9,3.37775253]
[1764723512456,0.47409247,3004.0,3003.9,3.37775253]
[1764723514153,1.21019247,3004.0,3003.9,3.37775253]
[1764723515545,1.96829247,3004.0,3003.9,0.00355253]
[1764723515857,1.5427,3003.6,3003.5,3.2078]
[1764723516754,1.5427,3003.6,3003.5,3.21040298]
[1764723523261,1.5427,3003.3,3003.2,0.00499625]
[1764723523462,1.5427,3003.3,3003.2,1.49649625]
[1764723524260,1.5427,3003.3,3003.2,0.74034393]
[1764723524853,1.5427,3003.3,3003.2,0.00794393]
[1764723525553,1.5427,3003.3,3003.2,0.74034393]
[1764723525858,4.0042,3003.4,3003.3,1.4915]
[1764723526064,4.7505,3003.4,3003.3,1.4915]
[1764723526358,4.7505,3003.4,3003.2,0.00794393]
[1764723526563,1.5427,3003.3,3003.2,0.00794393]
[1764723527061,1.5427,3003.3,3003.2,0.74034393]
[1764723527563,1.5427,3003.3,3003.2,0.00794393]
[1764723527961,1.5427,3003.3,3003.2,1.49944393]
[1764723530462,8.6075,3003.9,3003.8,0.7324]
[1764723531059,3.2078,3003.9,3003.8,1.6579]
[1764723531258,4.0042,3003.9,3003.8,1.6579]
[1764723531464,3.2078,3003.9,3003.8,1.6579]
[1764723531665,4.7505,3003.9,3003.8,1.6579]
[1764723531863,4.0042,3003.9,3003.8,1.6579]
[1764723532168,4.7505,3003.9,3003.8,1.6579]
[1764723532362,4.0042,3003.9,3003.8,1.6579]
[1764723532667,4.7505,3003.9,3003.8,1.6579]
[1764723535368,4.0042,3003.9,3003.8,1.6579]
[1764723535564,4.7505,3003.9,3003.8,1.6579]
[1764723536961,4.0042,3003.9,3003.8,1.6579]
[1764723537263,4.7505,3003.9,3003.8,1.6579]
[1764723537462,4.0042,3003.9,3003.8,1.6579]
[1764723537670,4.7505,3003.9,3003.8,1.6579]
[1764723538168,0.80039247,3004.0,3003.9,1.6579]
[1764723538469,0.00399247,3004.0,3003.9,1.6579]
[1764723540863,1.54669247,3004.0,3003.9,0.8988]
[1764723541176,1.99069247,3004.0,3003.9,0.1664]
[1764723541468,1.99069247,3004.0,3003.9,0.8988]
[1764723542067,1.99069247,3004.0,3003.9,0.1664]
[1764723542269,1.5427,3003.5,3003.4,13.22093]
[1764723542664,1.5427,3003.5,3003.4,1.65793]
[1764723543765,1.9819,3003.5,3003.4,0.89883]
[1764723545168,1.9819,3003.5,3003.4,1.68273]
[1764723545474,1.9819,3003.5,3003.4,0.89883]
[1764723548677,1.9819,3003.5,3003.4,0.16643]
[1764723549974,1.5356,3003.3,3003.2,1.55034393]
[1764723550181,1.5356,3003.3,3003.2,0.76644393]
[1764723550373,1.5356,3003.3,3003.2,1.55034393]
[1764723551378,1.5356,3003.3,3003.2,0.76644393]
[1764723552079,1.5356,3003.3,3003.2,1.55034393]
[1764723553378,0.7815,3003.3,3003.2,1.55034393]
[1764723553568,1.5356,3003.3,3003.2,1.55034393]
[1764723556283,1.5356,3003.3,3003.2,0.00794393]
[1764723557078,1.5356,3003.3,3003.2,0.76644393]
[1764723557381,1.5356,3003.3,3003.2,1.55034393]
[1764723558581,1.5356,3003.3,3003.2,0.76644393]
[1764723558875,1.5356,3003.3,3003.2,0.00794393]
[1764723559274,1.5356,3003.3,3003.2,0.76644393]
[1764723560573,1.5356,3003.3,3003.2,0.00794393]
[1764723561084,1.5356,3003.3,3003.2,0.76644393]
[1764723561683,3.2078,3003.7,3003.6,0.7585]
[1764723561880,4.7434,3003.7,3003.6,0.7585]
[1764723562485,1.5356,3003.4,3003.3,1.70883]
[1764723564084,1.5356,3003.4,3003.3,0.92493]
[1764723564474,1.5356,3003.4,3003.3,0.16643]
[1764723564679,1.5356,3003.4,3003.3,0.92493]
[1764723565283,1.5356,3003.3,3003.2,0.00794393]
[1764723565686,1.5356,3002.7,3002.6,3.2078]
[1764723565888,3.01357266,3002.7,3002.6,3.2078]
[1764723566588,3.01357266,3002.7,3002.6,3.21142476]
[1764723567179,3.01357266,3002.7,3002.6,0.00362476]
[1764723568492,1.5356,3002.7,3002.6,0.00362476]
[1764723572291,0.7815,3003.5,3003.4,1.5424]
[1764723572481,1.78248405,3004.0,3003.5,2.18502]
[1764723572690,0.00399247,3004.0,3003.9,1.5424]
[1764723573081,1.55279247,3004.0,3003.9,1.5424]
[1764723573288,0.00399247,3004.0,3003.9,1.5424]
[1764723574391,1.5704,3003.9,3003.5,0.4762]
[1764723574588,1.5704,3003.6,3003.5,0.7445]
[1764723574894,1.5704,3003.6,3003.5,1.4818]
[1764723575294,1.5706,3003.6,3003.5,1.4818]
[1764723576187,0.8031,3003.6,3003.5,1.4818]
[1764723577596,0.8031,3003.6,3003.5,4.6896]
[1764723579599,0.8031,3003.6,3003.5,5.1584]
[1764723580495,1.5706,3003.6,3003.5,5.1584]
[1764723580799,1.5706,3003.6,3003.5,3.2078]
[1764723581192,5.47059789,3003.9,3003.1,3.2078]
[1764723581193,1.5383,3003.2,3003.1,3.2078]
[1764723582300,1.5383,3003.2,3003.1,4.7128]
[1764723582500,1.5383,3003.2,3003.1,0.7629]
[1764723582699,1.5383,3003.2,3003.1,1.505]
[1764723583595,1.5383,3003.2,3003.1,0.7629]
[1764723584601,1.5383,3003.2,3003.1,1.505]
[1764723585102,0.7708,3003.2,3003.1,4.7128]
[1764723585499,1.5383,3003.2,3003.1,4.7128]
[1764723585895,0.7708,3003.2,3003.1,4.7128]
[1764723586396,1.5383,3003.2,3003.1,3.2078]
[1764723586703,2.0191,3003.0,3002.9,1.67145]
[1764723587402,2.0191,3003.0,3002.9,0.16645]
[1764723589807,0.7708,3002.7,3002.6,4.71642476]
[1764723590007,0.7708,3002.7,3002.6,4.88289476]
[1764723590806,0.4808,3003.0,3002.6,4.88289476]
[1764723591009,2.0191,3003.0,3002.9,0.7629]
[1764723592016,0.7708,3003.0,3002.9,1.505]
[1764723592203,3.6886,3003.5,3002.9,1.505]
[1764723592403,0.7708,3003.1,3003.0,1.9738]
[1764723592603,1.5383,3003.1,3003.0,1.9738]
[1764723593402,0.7708,3003.1,3003.0,1.9738]
[1764723593602,1.5383,3003.1,3003.0,1.505]